Workbook

Sheet NIB (hidden)
B1: 1 | C1: 2 | D1: 3 | E1: 4 | F1: 5 | G1: 6 | H1: 7 | I1: 8 | J1: 9 | K1: 10 | L1: 11 | M1: 12 | N1: 13 | O1: 14 | P1: 15 | Q1: 16 | R1: 17 | S1: 18 | T1: 19 | U1: 20 | V1: 21 | W1: 22 | X1: 23 | Y1: 24
A2: A | B2: 0+1 | F2: kont3-2 | J2: bliz3wt3 | N2: kont24+1 | R2: bliz24-2 | V2: inok24wt3 | Z2: - 2 red?itvi -- za preverjanje u?inkovitosti vzorca
A3: B | B3: 0+2 | F3: kont3-3 | J3: bliz3coi1 | N3: kont24+2 | R3: bliz24-3 | V3: inok24coi1 | Z3: - ?e k preve? odstopa od k umeritvene, se vzorec izlo?i
A4: C | B4: 0+3 | F4: kont3wt1 | J4: bliz3coi2 | N4: kont24+3 | R4: bliz24wt1 | V4: inok24coi2
A5: D | B5: 0-1 | F5: kont3wt2 | J5: bliz3coi3 | N5: kont24-1 | R5: bliz24wt2 | V5: inok24coi3
A6: E | B6: 0-2 | F6: kont3wt3 | J6: inok3+1 | N6: kont24-2 | R6: bliz24wt3
A7: F | B7: 0-3 | F7: kont3coi1 | J7: inok3+2 | N7: kont24-3 | R7: bliz24coi1
A8: G | B8: 0wt1 | F8: kont3coi2 | J8: inok3+3 | N8: kont24wt1 | R8: bliz24coi2
A9: H | B9: 0wt2 | F9: kont3coi3 | J9: inok3-1 | N9: kont24wt2 | R9: bliz24coi3
A10: I | B10: 0wt3 | F10: bliz3+1 | J10: inok3-2 | N10: kont24wt3 | R10: inok24+1
A11: J | B11: 0coi1 | F11: bliz3+2 | J11: inok3-3 | N11: kont24coi1 | R11: inok24+2
A12: K | B12: 0coi2 | F12: bliz3+3 | J12: inok3wt1 | N12: kont24coi2 | R12: inok24+3
A13: L | B13: 0coi3 | F13: bliz3-1 | J13: inok3wt2 | N13: kont24coi3 | R13: inok24-1 | X13: ntc
A14: M | B14: kont3+1 | F14: bliz3-2 | J14: inok3wt3 | N14: bliz24+1 | R14: inok24-2 | X14: 10 x | Z14: umeritvena krivulja kalibracijskega vzorca
A15: N | B15: kont3+2 | F15: bliz3-3 | J15: inok3coi1 | N15: bliz24+2 | R15: inok24-3 | X15: 100 x | Z15: - glede na to ra?unamo abs. koli?ine cDNA
A16: O | B16: kont3+3 | F16: bliz3wt1 | J16: inok3coi2 | N16: bliz24+3 | R16: inok24wt1 | X16: 1000 x
A17: P | B17: kont3-1 | F17: bliz3wt2 | J17: inok3coi3 | N17: bliz24-1 | R17: inok24wt2 | X17: 10000 x
A19: bolj logi?no PO SKUPINAH:
B20: 1 | C20: 2 | D20: 3 | E20: 4 | F20: 5 | G20: 6 | H20: 7 | I20: 8 | J20: 9 | K20: 10 | L20: 11 | M20: 12 | N20: 13 | O20: 14 | P20: 15 | Q20: 16 | R20: 17 | S20: 18 | T20: 19 | U20: 20 | V20: 21 | W20: 22 | X20: 23 | Y20: 24
A21: A | B21: 0+1 | F21: bliz24+2 | J21: inok3-3 | N21: bliz3wt1 | R21: 0coi2 | V21: bliz24coi3 | Z21: - 2 red?itvi -- za preverjanje u?inkovitosti vzorca
A22: B | B22: 0+2 | F22: bliz24+3 | J22: kont24-1 | N22: bliz3wt2 | R22: 0coi3 | V22: inok24coi1 | Z22: - ?e k preve? odstopa od k umeritvene, se vzorec izlo?i
A23: C | B23: 0+3 | F23: inok24+1 | J23: kont24-2 | N23: bliz3wt3 | R23: kont3coi1 | V23: inok24coi2
A24: D | B24: kont3+1 | F24: inok24+2 | J24: kont24-3 | N24: inok3wt1 | R24: kont3coi2 | V24: inok24coi3
A25: E | B25: kont3+2 | F25: inok24+3 | J25: bliz24-1 | N25: inok3wt2 | R25: kont3coi3
A26: F | B26: kont3+3 | F26: 0-1 | J26: bliz24-2 | N26: inok3wt3 | R26: bliz3coi1
A27: G | B27: bliz3+1 | F27: 0-2 | J27: bliz24-3 | N27: kont24wt1 | R27: bliz3coi2
A28: H | B28: bliz3+2 | F28: 0-3 | J28: inok24-1 | N28: kont24wt2 | R28: bliz3coi3
A29: I | B29: bliz3+3 | F29: kont3-1 | J29: inok24-2 | N29: kont24wt3 | R29: inok3coi1
A30: J | B30: inok3+1 | F30: kont3-2 | J30: inok24-3 | N30: bliz24wt1 | R30: inok3coi2
A31: K | B31: inok3+2 | F31: kont3-3 | J31: 0wt1 | N31: bliz24wt2 | R31: inok3coi3
A32: L | B32: inok3+3 | F32: bliz3-1 | J32: 0wt2 | N32: bliz24wt3 | R32: kont24coi1 | X32: ntc | Z32: umeritvena krivulja kalibracijskega vzorca
A33: M | B33: kont24+1 | F33: bliz3-2 | J33: 0wt3 | N33: inok24wt1 | R33: kont24coi2 | X33: 10 x | Z33: - glede na to ra?unamo abs. koli?ine cDNA
A34: N | B34: kont24+2 | F34: bliz3-3 | J34: kont3wt1 | N34: inok24wt2 | R34: kont24coi3 | X34: 100 x
A35: O | B35: kont24+3 | F35: inok3-1 | J35: kont3wt2 | N35: inok24wt3 | R35: bliz24coi1 | X35: 1000 x
A36: P | B36: bliz24+1 | F36: inok3-2 | J36: kont3wt3 | N36: 0coi1 | R36: bliz24coi2 | X36: 10000 x
B38: NA VSAKI PLOŠ?I?I BI MERIL SAMO 1 GEN - v enem run-u bi pomeril vse vzorce!!!

Sheet LC480 (hidden)
B1: References | H1: Targets
B2: 18S | D2: COX | F2: EF-2 | H2: ETR1 | J2: ETR4 | L2: CTR1 | N2: EIN3 | P2: ERF1 | R2: WIPK | T2: JAR1 | V2: coi1 | X2: StPPS3
B3: 1 | C3: 2 | D3: 3 | E3: 4 | F3: 5 | G3: 6 | H3: 7 | I3: 8 | J3: 9 | K3: 10 | L3: 11 | M3: 12 | N3: 13 | O3: 14 | P3: 15 | Q3: 16 | R3: 17 | S3: 18 | T3: 19 | U3: 20 | V3: 21 | W3: 22 | X3: 23 | Y3: 24
A4: A | B4: 0+1 | D4: 0+1 | F4: 0+1 | H4: 0+1 | J4: 0+1 | L4: 0+1 | N4: 0+1 | P4: 0+1 | R4: 0+1 | T4: 0+1 | V4: 0+1 | X4: 0+1
A5: B | B5: 0+2 | D5: 0+2 | F5: 0+2 | H5: 0+2 | J5: 0+2 | L5: 0+2 | N5: 0+2 | P5: 0+2 | R5: 0+2 | T5: 0+2 | V5: 0+2 | X5: 0+2
A6: C | B6: 0+3 | D6: 0+3 | F6: 0+3 | H6: 0+3 | J6: 0+3 | L6: 0+3 | N6: 0+3 | P6: 0+3 | R6: 0+3 | T6: 0+3 | V6: 0+3 | X6: 0+3
A7: D | B7: kont3+1 | D7: kont3+1 | F7: kont3+1 | H7: kont3+1 | J7: kont3+1 | L7: kont3+1 | N7: kont3+1 | P7: kont3+1 | R7: kont3+1 | T7: kont3+1 | V7: kont3+1 | X7: kont3+1
A8: E | B8: kont3+2 | D8: kont3+2 | F8: kont3+2 | H8: kont3+2 | J8: kont3+2 | L8: kont3+2 | N8: kont3+2 | P8: kont3+2 | R8: kont3+2 | T8: kont3+2 | V8: kont3+2 | X8: kont3+2
A9: F | B9: kont3+3 | D9: kont3+3 | F9: kont3+3 | H9: kont3+3 | J9: kont3+3 | L9: kont3+3 | N9: kont3+3 | P9: kont3+3 | R9: kont3+3 | T9: kont3+3 | V9: kont3+3 | X9: kont3+3
A10: G | B10: bliz3+1 | D10: bliz3+1 | F10: bliz3+1 | H10: bliz3+1 | J10: bliz3+1 | L10: bliz3+1 | N10: bliz3+1 | P10: bliz3+1 | R10: bliz3+1 | T10: bliz3+1 | V10: bliz3+1 | X10: bliz3+1
A11: H | B11: bliz3+2 | D11: bliz3+2 | F11: bliz3+2 | H11: bliz3+2 | J11: bliz3+2 | L11: bliz3+2 | N11: bliz3+2 | P11: bliz3+2 | R11: bliz3+2 | T11: bliz3+2 | V11: bliz3+2 | X11: bliz3+2
A12: I | B12: bliz3+3 | D12: bliz3+3 | F12: bliz3+3 | H12: bliz3+3 | J12: bliz3+3 | L12: bliz3+3 | N12: bliz3+3 | P12: bliz3+3 | R12: bliz3+3 | T12: bliz3+3 | V12: bliz3+3 | X12: bliz3+3
A13: J | B13: inok3+1 | D13: inok3+1 | F13: inok3+1 | H13: inok3+1 | J13: inok3+1 | L13: inok3+1 | N13: inok3+1 | P13: inok3+1 | R13: inok3+1 | T13: inok3+1 | V13: inok3+1 | X13: inok3+1
A14: K | B14: inok3+2 | D14: inok3+2 | F14: inok3+2 | H14: inok3+2 | J14: inok3+2 | L14: inok3+2 | N14: inok3+2 | P14: inok3+2 | R14: inok3+2 | T14: inok3+2 | V14: inok3+2 | X14: inok3+2
A15: L | B15: inok3+3 | D15: inok3+3 | F15: inok3+3 | H15: inok3+3 | J15: inok3+3 | L15: inok3+3 | N15: inok3+3 | P15: inok3+3 | R15: inok3+3 | T15: inok3+3 | V15: inok3+3 | X15: inok3+3
A16: M | B16: ntc | D16: ntc | F16: ntc | H16: ntc | J16: ntc | L16: ntc | N16: ntc | P16: ntc | R16: ntc | T16: ntc | V16: ntc | X16: ntc
A17: N
A18: O | B18: ="PosCal"&" "&B2 -> PosCal 18S | D18: ="PosCal"&" "&D2 -> PosCal COX | F18: ="PosCal"&" "&F2 -> PosCal EF-2 | H18: ="PosCal"&" "&H2 -> PosCal ETR1 | J18: ="PosCal"&" "&J2 -> PosCal ETR4 | L18: ="PosCal"&" "&L2 -> PosCal CTR1 | N18: ="PosCal"&" "&N2 -> PosCal EIN3 | P18: ="PosCal"&" "&P2 -> PosCal ERF1 | R18: ="PosCal"&" "&R2 -> PosCal WIPK | T18: ="PosCal"&" "&T2 -> PosCal JAR1 | V18: ="PosCal"&" "&V2 -> PosCal coi1 | X18: ="PosCal"&" "&X2 -> PosCal StPPS3 | Z18: - kalibracijski vzorec - pool, za primerjavo med ploš?icami
A19: P
B21: References | H21: Targets
B22: 18S | D22: COX | F22: EF-2 | H22: ETR1 | J22: ETR4 | L22: CTR1 | N22: EIN3 | P22: ERF1 | R22: WIPK | T22: JAR1 | V22: coi1 | X22: StPPS3
B23: 1 | C23: 2 | D23: 3 | E23: 4 | F23: 5 | G23: 6 | H23: 7 | I23: 8 | J23: 9 | K23: 10 | L23: 11 | M23: 12 | N23: 13 | O23: 14 | P23: 15 | Q23: 16 | R23: 17 | S23: 18 | T23: 19 | U23: 20 | V23: 21 | W23: 22 | X23: 23 | Y23: 24
A24: A | B24: kont24+1 | D24: kont24+1 | F24: kont24+1 | H24: kont24+1 | J24: kont24+1 | L24: kont24+1 | N24: kont24+1 | P24: kont24+1 | R24: kont24+1 | T24: kont24+1 | V24: kont24+1 | X24: kont24+1
A25: B | B25: kont24+2 | D25: kont24+2 | F25: kont24+2 | H25: kont24+2 | J25: kont24+2 | L25: kont24+2 | N25: kont24+2 | P25: kont24+2 | R25: kont24+2 | T25: kont24+2 | V25: kont24+2 | X25: kont24+2
A26: C | B26: kont24+3 | D26: kont24+3 | F26: kont24+3 | H26: kont24+3 | J26: kont24+3 | L26: kont24+3 | N26: kont24+3 | P26: kont24+3 | R26: kont24+3 | T26: kont24+3 | V26: kont24+3 | X26: kont24+3
A27: D | B27: bliz24+1 | D27: bliz24+1 | F27: bliz24+1 | H27: bliz24+1 | J27: bliz24+1 | L27: bliz24+1 | N27: bliz24+1 | P27: bliz24+1 | R27: bliz24+1 | T27: bliz24+1 | V27: bliz24+1 | X27: bliz24+1
A28: E | B28: bliz24+2 | D28: bliz24+2 | F28: bliz24+2 | H28: bliz24+2 | J28: bliz24+2 | L28: bliz24+2 | N28: bliz24+2 | P28: bliz24+2 | R28: bliz24+2 | T28: bliz24+2 | V28: bliz24+2 | X28: bliz24+2
A29: F | B29: bliz24+3 | D29: bliz24+3 | F29: bliz24+3 | H29: bliz24+3 | J29: bliz24+3 | L29: bliz24+3 | N29: bliz24+3 | P29: bliz24+3 | R29: bliz24+3 | T29: bliz24+3 | V29: bliz24+3 | X29: bliz24+3
A30: G | B30: inok24+1 | D30: inok24+1 | F30: inok24+1 | H30: inok24+1 | J30: inok24+1 | L30: inok24+1 | N30: inok24+1 | P30: inok24+1 | R30: inok24+1 | T30: inok24+1 | V30: inok24+1 | X30: inok24+1
A31: H | B31: inok24+2 | D31: inok24+2 | F31: inok24+2 | H31: inok24+2 | J31: inok24+2 | L31: inok24+2 | N31: inok24+2 | P31: inok24+2 | R31: inok24+2 | T31: inok24+2 | V31: inok24+2 | X31: inok24+2
A32: I | B32: inok24+3 | D32: inok24+3 | F32: inok24+3 | H32: inok24+3 | J32: inok24+3 | L32: inok24+3 | N32: inok24+3 | P32: inok24+3 | R32: inok24+3 | T32: inok24+3 | V32: inok24+3 | X32: inok24+3
A33: J | B33: ntc | D33: ntc | F33: ntc | H33: ntc | J33: ntc | L33: ntc | N33: ntc | P33: ntc | R33: ntc | T33: ntc | V33: ntc | X33: ntc
A34: K
A35: L
A36: M
A37: N
A38: O | B38: ="PosCal"&" "&B22 -> PosCal 18S | D38: ="PosCal"&" "&D22 -> PosCal COX | F38: ="PosCal"&" "&F22 -> PosCal EF-2 | H38: ="PosCal"&" "&H22 -> PosCal ETR1 | J38: ="PosCal"&" "&J22 -> PosCal ETR4 | L38: ="PosCal"&" "&L22 -> PosCal CTR1 | N38: ="PosCal"&" "&N22 -> PosCal EIN3 | P38: ="PosCal"&" "&P22 -> PosCal ERF1 | R38: ="PosCal"&" "&R22 -> PosCal WIPK | T38: ="PosCal"&" "&T22 -> PosCal JAR1 | V38: ="PosCal"&" "&V22 -> PosCal coi1 | X38: ="PosCal"&" "&X22 -> PosCal StPPS3
A39: P
B40: Slabosti te postavitve:
B41: - pripravljanje 6 mixov (60ul/ampl) na eno ploš?ico - SLABŠE ZA PIPETIRANJE Z ROBOTOM
B42: - na dveh ploš?icah analiziram samo 21 vzorcev in 3 tar?ne gene -> cel exp (84 vzorcev, 36 genov): 2*4*12 = 96 ploš?ic
B43: - ne moreš vedet ali gre pri vzorcu, ki odstopa za biol. variabilnost ali inhibicije!
B45: Prednosti te postavitve:
B46: - avtomati?na obdelava podatkov v Roche software-u
B47: - "by the book" postopek relativne kvantifikacije
B49: LEGENDA VZORCEV:
B50: - tretma: kont, bliz, inok | H50: 3
B51: - ?asovna to?ka: 0, 3h, 24h | H51: 2
B52: - skupina: +, - , wt, coi | H52: 4
B53: - bio. pon.: 1, 2, 3 | H53: 3
G54: sum: | H54: =H53*H52*H51*H50 + H53*H52 -> 84

Sheet LC480+EFF (hidden)
B1: References | N1: Targets
B2: 18S_1k | D2: 18S_10k | F2: COX_1k | H2: COX_10k | J2: EF-2_10 | L2: EF-2_100 | N2: ETR1_10 | P2: ETR1_100 | R2: ETR4_10 | T2: ETR4_100 | V2: CTR1_10 | X2: CTR1_100
B3: 1 | C3: 2 | D3: 3 | E3: 4 | F3: 5 | G3: 6 | H3: 7 | I3: 8 | J3: 9 | K3: 10 | L3: 11 | M3: 12 | N3: 13 | O3: 14 | P3: 15 | Q3: 16 | R3: 17 | S3: 18 | T3: 19 | U3: 20 | V3: 21 | W3: 22 | X3: 23 | Y3: 24
A4: A | B4: 0+1 | D4: 0+1 | F4: 0+1 | H4: 0+1 | J4: 0+1 | L4: 0+1 | N4: 0+1 | P4: 0+1 | R4: 0+1 | T4: 0+1 | V4: 0+1 | X4: 0+1
A5: B | B5: 0+2 | D5: 0+2 | F5: 0+2 | H5: 0+2 | J5: 0+2 | L5: 0+2 | N5: 0+2 | P5: 0+2 | R5: 0+2 | T5: 0+2 | V5: 0+2 | X5: 0+2
A6: C | B6: 0+3 | D6: 0+3 | F6: 0+3 | H6: 0+3 | J6: 0+3 | L6: 0+3 | N6: 0+3 | P6: 0+3 | R6: 0+3 | T6: 0+3 | V6: 0+3 | X6: 0+3
A7: D | B7: kont3+1 | D7: kont3+1 | F7: kont3+1 | H7: kont3+1 | J7: kont3+1 | L7: kont3+1 | N7: kont3+1 | P7: kont3+1 | R7: kont3+1 | T7: kont3+1 | V7: kont3+1 | X7: kont3+1
A8: E | B8: kont3+2 | D8: kont3+2 | F8: kont3+2 | H8: kont3+2 | J8: kont3+2 | L8: kont3+2 | N8: kont3+2 | P8: kont3+2 | R8: kont3+2 | T8: kont3+2 | V8: kont3+2 | X8: kont3+2
A9: F | B9: kont3+3 | D9: kont3+3 | F9: kont3+3 | H9: kont3+3 | J9: kont3+3 | L9: kont3+3 | N9: kont3+3 | P9: kont3+3 | R9: kont3+3 | T9: kont3+3 | V9: kont3+3 | X9: kont3+3
A10: G | B10: bliz3+1 | D10: bliz3+1 | F10: bliz3+1 | H10: bliz3+1 | J10: bliz3+1 | L10: bliz3+1 | N10: bliz3+1 | P10: bliz3+1 | R10: bliz3+1 | T10: bliz3+1 | V10: bliz3+1 | X10: bliz3+1
A11: H | B11: bliz3+2 | D11: bliz3+2 | F11: bliz3+2 | H11: bliz3+2 | J11: bliz3+2 | L11: bliz3+2 | N11: bliz3+2 | P11: bliz3+2 | R11: bliz3+2 | T11: bliz3+2 | V11: bliz3+2 | X11: bliz3+2
A12: I | B12: bliz3+3 | D12: bliz3+3 | F12: bliz3+3 | H12: bliz3+3 | J12: bliz3+3 | L12: bliz3+3 | N12: bliz3+3 | P12: bliz3+3 | R12: bliz3+3 | T12: bliz3+3 | V12: bliz3+3 | X12: bliz3+3
A13: J | B13: inok3+1 | D13: inok3+1 | F13: inok3+1 | H13: inok3+1 | J13: inok3+1 | L13: inok3+1 | N13: inok3+1 | P13: inok3+1 | R13: inok3+1 | T13: inok3+1 | V13: inok3+1 | X13: inok3+1
A14: K | B14: inok3+2 | D14: inok3+2 | F14: inok3+2 | H14: inok3+2 | J14: inok3+2 | L14: inok3+2 | N14: inok3+2 | P14: inok3+2 | R14: inok3+2 | T14: inok3+2 | V14: inok3+2 | X14: inok3+2
A15: L | B15: inok3+3 | D15: inok3+3 | F15: inok3+3 | H15: inok3+3 | J15: inok3+3 | L15: inok3+3 | N15: inok3+3 | P15: inok3+3 | R15: inok3+3 | T15: inok3+3 | V15: inok3+3 | X15: inok3+3
A16: M | B16: ntc | D16: ntc | F16: ntc | H16: ntc | J16: ntc | L16: ntc | N16: ntc | P16: ntc | R16: ntc | T16: ntc | V16: ntc | X16: ntc
A17: N
A18: O | B18: ="PosCal"&" "&B2 -> PosCal 18S_1k | D18: ="PosCal"&" "&D2 -> PosCal 18S_10k | F18: ="PosCal"&" "&F2 -> PosCal COX_1k | H18: ="PosCal"&" "&H2 -> PosCal COX_10k | J18: ="PosCal"&" "&J2 -> PosCal EF-2_10 | L18: ="PosCal"&" "&L2 -> PosCal EF-2_100 | N18: ="PosCal"&" "&N2 -> PosCal ETR1_10 | P18: ="PosCal"&" "&P2 -> PosCal ETR1_100 | R18: ="PosCal"&" "&R2 -> PosCal ETR4_10 | T18: ="PosCal"&" "&T2 -> PosCal ETR4_100 | V18: ="PosCal"&" "&V2 -> PosCal CTR1_10 | X18: ="PosCal"&" "&X2 -> PosCal CTR1_100 | Z18: - kalibracijski vzorec - pool, za primerjavo med ploš?icai
A19: P
B21: References | N21: Targets
B22: 18S_1k | D22: 18S_10k | F22: COX_1k | H22: COX_10k | J22: EF-2_10 | L22: EF-2_100 | N22: ETR1_10 | P22: ETR1_100 | R22: ETR4_10 | T22: ETR4_100 | V22: CTR1_10 | X22: CTR1_100
B23: 1 | C23: 2 | D23: 3 | E23: 4 | F23: 5 | G23: 6 | H23: 7 | I23: 8 | J23: 9 | K23: 10 | L23: 11 | M23: 12 | N23: 13 | O23: 14 | P23: 15 | Q23: 16 | R23: 17 | S23: 18 | T23: 19 | U23: 20 | V23: 21 | W23: 22 | X23: 23 | Y23: 24
A24: A | B24: kont24+1 | D24: kont24+1 | F24: kont24+1 | H24: kont24+1 | J24: kont24+1 | L24: kont24+1 | N24: kont24+1 | P24: kont24+1 | R24: kont24+1 | T24: kont24+1 | V24: kont24+1 | X24: kont24+1
A25: B | B25: kont24+2 | D25: kont24+2 | F25: kont24+2 | H25: kont24+2 | J25: kont24+2 | L25: kont24+2 | N25: kont24+2 | P25: kont24+2 | R25: kont24+2 | T25: kont24+2 | V25: kont24+2 | X25: kont24+2
A26: C | B26: kont24+3 | D26: kont24+3 | F26: kont24+3 | H26: kont24+3 | J26: kont24+3 | L26: kont24+3 | N26: kont24+3 | P26: kont24+3 | R26: kont24+3 | T26: kont24+3 | V26: kont24+3 | X26: kont24+3
A27: D | B27: bliz24+1 | D27: bliz24+1 | F27: bliz24+1 | H27: bliz24+1 | J27: bliz24+1 | L27: bliz24+1 | N27: bliz24+1 | P27: bliz24+1 | R27: bliz24+1 | T27: bliz24+1 | V27: bliz24+1 | X27: bliz24+1
A28: E | B28: bliz24+2 | D28: bliz24+2 | F28: bliz24+2 | H28: bliz24+2 | J28: bliz24+2 | L28: bliz24+2 | N28: bliz24+2 | P28: bliz24+2 | R28: bliz24+2 | T28: bliz24+2 | V28: bliz24+2 | X28: bliz24+2
A29: F | B29: bliz24+3 | D29: bliz24+3 | F29: bliz24+3 | H29: bliz24+3 | J29: bliz24+3 | L29: bliz24+3 | N29: bliz24+3 | P29: bliz24+3 | R29: bliz24+3 | T29: bliz24+3 | V29: bliz24+3 | X29: bliz24+3
A30: G | B30: inok24+1 | D30: inok24+1 | F30: inok24+1 | H30: inok24+1 | J30: inok24+1 | L30: inok24+1 | N30: inok24+1 | P30: inok24+1 | R30: inok24+1 | T30: inok24+1 | V30: inok24+1 | X30: inok24+1
A31: H | B31: inok24+2 | D31: inok24+2 | F31: inok24+2 | H31: inok24+2 | J31: inok24+2 | L31: inok24+2 | N31: inok24+2 | P31: inok24+2 | R31: inok24+2 | T31: inok24+2 | V31: inok24+2 | X31: inok24+2
A32: I | B32: inok24+3 | D32: inok24+3 | F32: inok24+3 | H32: inok24+3 | J32: inok24+3 | L32: inok24+3 | N32: inok24+3 | P32: inok24+3 | R32: inok24+3 | T32: inok24+3 | V32: inok24+3 | X32: inok24+3
A33: J | B33: ntc | D33: ntc | F33: ntc | H33: ntc | J33: ntc | L33: ntc | N33: ntc | P33: ntc | R33: ntc | T33: ntc | V33: ntc | X33: ntc
A34: K
A35: L
A36: M
A37: N
A38: O | B38: ="PosCal"&" "&B22 -> PosCal 18S_1k | D38: ="PosCal"&" "&D22 -> PosCal 18S_10k | F38: ="PosCal"&" "&F22 -> PosCal COX_1k | H38: ="PosCal"&" "&H22 -> PosCal COX_10k | J38: ="PosCal"&" "&J22 -> PosCal EF-2_10 | L38: ="PosCal"&" "&L22 -> PosCal EF-2_100 | N38: ="PosCal"&" "&N22 -> PosCal ETR1_10 | P38: ="PosCal"&" "&P22 -> PosCal ETR1_100 | R38: ="PosCal"&" "&R22 -> PosCal ETR4_10 | T38: ="PosCal"&" "&T22 -> PosCal ETR4_100 | V38: ="PosCal"&" "&V22 -> PosCal CTR1_10 | X38: ="PosCal"&" "&X22 -> PosCal CTR1_100
A39: P
B40: Slabosti te postavitve:
B41: - pripravljanje 12 mixov (60ul/ampl) na eno ploš?ico - SLABŠE ZA PIPETIRANJE Z ROBOTOM
B42: - na dveh ploš?icah analiziram samo 21 vzorcev in 9 tar?nih genov -> cel exp (84 vzorcev, 36 genov): 2*4*4 = 32 ploš?ic
B44: Prednosti te postavitve:
B45: - avtomati?na obdelava podatkov v Roche software-u
B46: - "by the book" postopek relativne kvantifikacije
B48: LEGENDA VZORCEV:
B49: - tretma: kont, bliz, inok | H49: 3
B50: - ?asovna to?ka: 0, 3h, 24h | H50: 2
B51: - skupina: +, - , wt, coi | H51: 4
B52: - bio. pon.: 1, 2, 3 | H52: 3
G53: sum: | H53: =H52*H51*H50*H49 + H52*H51 -> 84

Sheet RNAinVAL_Ecoli_ds_production
V2: pool | AE2: MasterMix used: | AI2: MasterMix used:
A3: amplikon | D3: 1 | E3: 2 | F3: 3 | G3: 4 | H3: 5 | I3: 6 | J3: 7 | K3: 8 | L3: 9 | M3: 10 | N3: 11 | O3: 12 | P3: 13 | Q3: 14 | R3: 15 | S3: 16 | T3: 17 | U3: 18 | V3: 19 | W3: 20 | X3: 21 | Y3: 22 | Z3: 23 | AA3: 24 | AE3: Roche Probes Master with ROX | AI3: SYBR Power Abi
A4: 16S TaqMan | C4: A | D4: vz1 (Ecoli_dsGFP) 100x | F4: vz1 1000x | H4: vz1 10 000x | J4: vz2 (Ecoli_dsMesh) 100x | L4: vz2 1000x | N4: vz2 10 000x | P4: vz3 (dsMesh K) 100x | R4: vz3 1000x | T4: vz3 10 000x | V4: 100 | W4: 100 | X4: 1000 | Y4: 1000 | Z4: 10 000 | AA4: 10 000
C5: B | V5: 100 000 | W5: 100 000 | X5: 1mio | Y5: 1mio | Z5: NTC | AA5: NTC | AE5: 16S Taqman | AI5: SYBR
A6: mesh_SYBR | C6: C | D6: vz2 (Ecoli_dsMesh) 100x | F6: vz2 1000x | H6: vz2 10 000x | J6: vz3 (dsMesh K) 100x | L6: vz3 1000x | N6: vz3 10 000x | V6: 100 | W6: 100 | X6: 1000 | Y6: 1000 | Z6: 10 000 | AA6: 10 000 | AC6: vzorcev/amplikon: | AE6: 3 | AI6: 2
C7: D | V7: 100 000 | W7: 100 000 | X7: 1mio | Y7: 1mio | Z7: NTC | AA7: NTC | AC7: lukenj/vz: | AE7: 6 | AI7: 6
A8: GFP_SYBR | C8: E | D8: vz1 (Ecoli_dsGFP) 100x | F8: vz2 1000x | H8: vz2 10 000x | V8: 100 | W8: 100 | X8: 1000 | Y8: 1000 | Z8: 10 000 | AA8: 10 000 | AC8: NTC, umeritvena: | AE8: 12 | AI8: 12
C9: F | V9: 100 000 | W9: 100 000 | X9: 1mio | Y9: 1mio | Z9: NTC | AA9: NTC | AC9: procent izgub: | AE9: 10 | AF9: % | AI9: 10 | AJ9: %
C10: G | AC10: št. reakcij z upoštevano izgubo: | AE10: =(AE6*AE7+AE8)*(100+AE9)/100 -> 33 | AI10: =(AI6*AI7+AI8)*(100+AI9)/100 -> 26.4
C11: H
C12: I
C13: J
C14: K
C15: L
C16: M | AC16: TaqMan amplikoni | AG16: SybrGreen amplikoni
C17: N | AC17: št. reakcij: | AD17: =ROUNDUP(AE10,0) -> 33 | AG17: št. reakcij: | AH17: =ROUNDUP(AI10,0) -> 27
C18: O | AC18: sonda: | AD18: 150 | AE18: 0.075 | AG18: sonda:
C19: P | AC19: FP: | AD19: 300 | AE19: 0.05 | AG19: FP: | AH19: 300 | AI19: 0.05
AC20: RP: | AD20: 300 | AE20: 0.05 | AG20: RP: | AH20: 300 | AI20: 0.05
E22: 1) | F22: za vzorce pripraviti redčine: 10x, 100x, 1000x, 10.000x
E23: 2) | F23: PRIPRAVITI POOL vz 1 in 2 (100x = 2ul + 198ul H2O) | AD23: MIX for each amplicon
E24: 3) | F24: pool redčit iz 100x, 1000x, 10 000x, 100 000x, 1 miox | AC24: UMM (2x) | AD24: =2.5*AD17 -> 82.5 | AE24: ul | AG24: UMM (2x) | AH24: =2.5*AH17 -> 67.5 | AI24: ul
AC25: FP | AD25: =AE19*AD17 -> 1.65 | AE25: ul | AG25: FP | AH25: =AI19*AH17 -> 1.35 | AI25: ul
AC26: RP | AD26: =AE19*AD17 -> 1.65 | AE26: ul | AG26: RP | AH26: =AI19*AH17 -> 1.35 | AI26: ul
AC27: sonda | AD27: =AE18*AD17 -> 2.475 | AE27: ul | AI27: ul
AC28: ddH2O | AD28: =(5*AD17)-(SUM(AD24:AD27,AD29)) -> 10.725 | AE28: ul | AG28: ddH2O | AH28: =(5*AH17)-(SUM(AH24:AH27,AH29)) -> 10.8 | AI28: ul
AC29: vzorci | AD29: =2*AD17 -> 66 | AG29: vzorci | AH29: =2*AH17 -> 54
AC30: skupaj mixa | AD30: =SUM(AD24:AD28) -> 99 | AE30: ul | AG30: skupaj mixa | AH30: =SUM(AH24:AH28) -> 81 | AI30: ul
AC31: pipetiramo | AD31: 3 | AE31: ul | AG31: pipetiramo | AH31: 3 | AI31: ul
AC32: skupaj Mix+Vz | AD32: =+AD29+AD30 -> 165 | AE32: ul | AG32: skupaj Mix+Vz | AH32: =+AH29+AH30 -> 135 | AI32: ul
AC33: ostane mixa | AD33: =+AD30-(AE6*AE7+AE8)*3 -> 9 | AE33: ul | AG33: ostane mixa | AH33: =+AH30-(AI6*AI7+AI8)*3 -> 9 | AI33: ul
AC36: primerji:
AC37: Stock | AD37: Delovne raztopine za 5 ul reakcije:
AC38: Primerji | AE38: priprava | AF38: uM | AG38: ul v mix | AH38: V reakcije | AI38: konc/reakcijo | AJ38: nM
AC39: 100 uM | AD39: 30 uM | AE39: 30+70 | AF39: 30 | AG39: =AI39/(AF39/AH39) -> 0.15 | AH39: 5 | AI39: 0.9 | AJ39: =AF39*AG39/AH39*1000 -> 900
AF40: 30 | AG40: =AI40/(AF40/AH40) -> 0.1 | AH40: 5 | AI40: 0.6 | AJ40: =AF40*AG40/AH40*1000 -> 600
AF41: 30 | AG41: =AI41/(AF41/AH41) -> 0.05 | AH41: 5 | AI41: 0.3 | AJ41: =AF41*AG41/AH41*1000 -> 300
AC42: Sonda
AC43: 100 uM | AD43: 10 uM | AE43: 10+90 | AF43: 10 | AG43: =AI43/(AF43/AH43) -> 0.125 | AH43: 5 | AI43: 0.25 | AJ43: =AF43*AG43/AH43*1000 -> 250
AF44: 10 | AG44: =AI44/(AF44/AH44) -> 0.075 | AH44: 5 | AI44: 0.15 | AJ44: =AF44*AG44/AH44*1000 -> 150
